fUSD/lending_fUSD_20250606
["ID","MTS","AMOUNT","RATE_DAILY","PERIOD"]
[364751594,1749229832261,-162.82,0.00025152,3]
[364751595,1749229832270,-1200.0,0.00025249,2]
[364751596,1749229832280,-11130.55,0.00025251,2]
[364751597,1749229832289,-776.51,0.00025329,2]
[364751598,1749229832299,-6419.61,0.00025334,2]
[364751599,1749229832308,-23900.0,0.00025383,2]
[364751600,1749229832318,-1500.0,0.00025407,2]
[364751601,1749229832327,-898.17,0.00025441,2]
[364751602,1749229832337,-503.0,0.00025441,2]
[364751603,1749229832347,-200.0,0.00025565,2]
[364751604,1749229832356,-154.62,0.00025578,2]
[364751605,1749229832366,-263.11815615,0.0002564,2]
[364751606,1749229832377,-300.0,0.00025737,2]
[364751608,1749229832387,-2751.0,0.0002574,2]
[364751610,1749229832396,-1000.0,0.0002574,2]
[364751612,1749229832406,-7591.54,0.00025855,2]
[364751613,1749229832415,-246.57549873,0.00025858,2]
[364751616,1749229832426,-1614.10259497,0.000259,14]
[364751618,1749229832436,-170.2,0.00025955,2]
[364751620,1749229832445,-383.05,0.00026085,2]
[364751622,1749229832454,-1614.10259472,0.00026107,14]
[364751624,1749229832464,-710.83,0.00026164,2]
[364751626,1749229832474,-176.52,0.00026206,2]
[364751628,1749229832483,-166.66,0.00026235,2]
[364751630,1749229832493,-1000.0,0.00026307,2]
[364751632,1749229832502,-418.51,0.00026307,2]
[364751634,1749229832511,-1614.10259472,0.00026314,14]
[364751636,1749229832523,-3158.91,0.00026374,2]
[364751639,1749229832532,-624.39641845,0.00026439,2]
[364751642,1749229832541,-150.0,0.00026475,7]
[364751645,1749229832550,-1614.10259472,0.00026521,15]
[364751649,1749229832560,-10216.59812165,0.00026524,2]
[364751652,1749229832570,-454.45,0.00026575,2]
[364751655,1749229832579,-252.42,0.00026575,2]
[364751657,1749229832588,-151.42,0.00026575,2]
[364751660,1749229832600,-30793.73,0.00026591,10]
[364751662,1749229832610,-433.65,0.00026591,2]
[364751665,1749229832619,-150.99,0.00026591,2]
[364751667,1749229832628,-231.79,0.00026591,12]
[364751670,1749229832638,-207.71,0.00026591,2]
[364751671,1749229832647,-9999.99,0.00026591,2]
[364751674,1749229832657,-620.7,0.00026591,20]
[364751677,1749229832666,-805.49,0.00026591,2]
[364751680,1749229832676,-175.99,0.00026676,2]
[364751682,1749229832685,-22319.99640829,0.00026689,2]
[364751744,1749229833105,-663.23,0.00026689,2]
[364751747,1749229833120,-2831.278002,0.00026689,2]
[364751749,1749229833132,-1538.83228188,0.00026689,2]
[364751798,1749229833612,-486.87981497,0.00026689,2]
[364752022,1749229838097,-500.0,0.00026689,2]
[364752023,1749229838154,-6031.70666188,0.00026689,2]
[364752024,1749229838165,-2100.0,0.000267,9]
[364752025,1749229838174,-1614.10259472,0.00026728,15]
[364752026,1749229838184,-151.0,0.00026734,2]
[364752027,1749229838194,-151.0,0.00026734,2]
[364752028,1749229838204,-151.0,0.00026734,2]
[364752029,1749229838213,-151.0,0.00026734,2]
[364752030,1749229838224,-151.0,0.00026734,2]
[364752031,1749229838235,-151.0,0.00026734,2]
[364752032,1749229838245,-151.0,0.00026734,2]
[364752033,1749229838255,-151.0,0.00026734,2]
[364752034,1749229838265,-151.0,0.00026734,2]
[364752035,1749229838275,-151.0,0.00026734,2]
[364752036,1749229838285,-245.0,0.00026734,2]
[364752037,1749229838295,-519.62,0.0002674,2]
[364752038,1749229838305,-28172.0,0.0002675,2]
[364752040,1749229838315,-162.05084622,0.00026789,2]
[364752042,1749229838325,-4200.0,0.000268,9]
[364752043,1749229838335,-34371.923169,0.00026827,2]
[364752044,1749229838346,-503.4807735,0.00026876,7]
[364752045,1749229838356,-203.0,0.00026883,6]
[364752046,1749229838365,-6300.0,0.000269,9]
[364752048,1749229838375,-1614.10259472,0.00026934,16]
[364752049,1749229838389,-519.62,0.00026944,2]
[364752050,1749229838399,-290.93363223,0.00026948,2]
[364752051,1749229838409,-34371.923169,0.00026964,2]
[364752052,1749229838419,-383.05,0.00027028,2]
[364752053,1749229838428,-519.62,0.00027092,2]
[364752054,1749229838437,-34371.923169,0.00027102,2]
[364752055,1749229838447,-187.5,0.00027121,2]
[364752056,1749229838456,-1614.10259472,0.00027141,16]
[364752057,1749229838466,-235.0,0.00027194,2]
[364752058,1749229838476,-594.82396336,0.00027197,12]
[364752059,1749229838485,-519.62,0.00027229,2]
[364752060,1749229838495,-34371.923169,0.00027239,2]
[364752062,1749229838505,-7774.96077224,0.00027263,2]
[364752063,1749229838515,-297.63796211,0.00027273,2]
[364752064,1749229838525,-297.63796211,0.00027276,2]
[364752065,1749229838535,-348.32517247,0.00027277,2]
[364752066,1749229838545,-519.62,0.00027277,2]
[364752067,1749229838554,-297.63796211,0.00027278,2]
[364752068,1749229838563,-297.63796211,0.00027281,2]
[364752069,1749229838573,-297.63796211,0.00027284,2]
[364752070,1749229838583,-297.63796211,0.00027286,2]
[364752071,1749229838592,-19425.16838964,0.00027287,2]
[364752072,1749229838605,-34288.51421167,0.00027287,2]
[364752073,1749229838614,-297.63796211,0.00027289,2]
[364752074,1749229838624,-297.63796211,0.00027292,2]
[364752075,1749229838635,-297.63796211,0.00027294,2]
[364752076,1749229838644,-13811.04979176,0.00027297,2]
[364752077,1749229838654,-297.63796211,0.00027297,2]
[364752078,1749229838664,-1825.94134665,0.00027297,2]
[364752079,1749229838675,-1614.10259472,0.00027348,16]
[364752080,1749229838688,-34288.51421164,0.00027361,2]
[364752081,1749229838697,-500.0,0.00027373,2]
[364752082,1749229838706,-500.0,0.00027373,2]
[364752083,1749229838715,-265.95345906,0.00027373,2]
[364752084,1749229838725,-500.0,0.00027373,2]
[364752085,1749229838735,-500.0,0.00027373,2]
[364752086,1749229838744,-156.62280236,0.00027373,2]
[364752087,1749229838754,-501.67025485,0.00027373,2]
[364752088,1749229838763,-500.0,0.00027373,2]
[364752089,1749229838773,-500.0,0.00027373,2]
[364752090,1749229838782,-500.0,0.00027373,2]
[364752091,1749229838791,-500.0,0.00027373,2]
[364752092,1749229838800,-348.32517245,0.00027374,2]
[364752093,1749229838810,-34371.923169,0.00027377,2]
[364752094,1749229838821,-37823.8839175,0.00027377,2]
[364752095,1749229838830,-152.33,0.00027377,2]
[364752096,1749229838839,-150.0,0.00027386,2]
[364752097,1749229838849,-150.0,0.00027386,2]
[364752098,1749229838859,-340414.955258,0.00027387,2]
[364752099,1749229838868,-223054.581398,0.00027387,2]
[364752100,1749229838878,-819.85951285,0.00027387,2]
[364752101,1749229838888,-152.33,0.00027387,2]
[364752102,1749229838897,-152.33,0.00027387,2]
[364752103,1749229838907,-1000.0,0.00027397,2]
[364752104,1749229838916,-1000.0,0.00027397,2]
[364752105,1749229838926,-1000.0,0.00027397,2]
[364752106,1749229838935,-1000.0,0.00027397,2]
[364752107,1749229838945,-1000.0,0.00027397,2]
[364752108,1749229838954,-1000.0,0.00027397,2]
[364752109,1749229838963,-1000.0,0.00027397,2]
[364752110,1749229838972,-1000.0,0.00027397,2]
[364752111,1749229838984,-1000.0,0.00027397,2]
[364752112,1749229838996,-1000.0,0.00027397,2]
[364752113,1749229839005,-1000.0,0.00027397,2]
[364752114,1749229839014,-1000.0,0.00027397,2]
[364752115,1749229839029,-699.0,0.00027397,2]
[364752116,1749229839039,-248.41548222,0.00027397,5]
[364752117,1749229839049,-481.850051,0.00027397,5]
[364752118,1749229839058,-480.0,0.00027397,5]
[364752119,1749229839068,-480.0,0.00027397,5]
[364752120,1749229839078,-312.91984795,0.00027397,5]
[364752121,1749229839087,-480.0,0.00027397,5]
[364752122,1749229839097,-480.0,0.00027397,5]
[364752123,1749229839106,-480.0,0.00027397,2]
[364752124,1749229839116,-498.86195999,0.00027397,5]
[364752125,1749229839125,-480.0,0.00027397,5]
[364752126,1749229839135,-480.0,0.00027397,5]
[364752127,1749229839144,-480.0,0.00027397,5]
[364752128,1749229839153,-1010.98,0.00027397,5]
[364752129,1749229839162,-480.0,0.00027397,5]
[364752130,1749229839171,-480.0,0.00027397,5]
[364752131,1749229839180,-480.0,0.00027397,5]
[364752132,1749229839189,-480.0,0.00027397,5]
[364752133,1749229839198,-242.14382186,0.00027397,5]
[364752134,1749229839207,-480.0,0.00027397,5]
[364752135,1749229839216,-480.0,0.00027397,5]
[364752136,1749229839225,-666.83,0.00027397,5]
[364752137,1749229839235,-480.0,0.00027397,5]
[364752138,1749229839244,-480.0,0.00027397,5]
[364752139,1749229839253,-480.0,0.00027397,5]
[364752140,1749229839262,-480.0,0.00027397,5]
[364752141,1749229839271,-300.0,0.00027397,5]
[364752142,1749229839281,-480.0,0.00027397,5]
[364752143,1749229839290,-480.0,0.00027397,5]
[364752144,1749229839300,-480.0,0.00027397,5]
[364752145,1749229839309,-480.0,0.00027397,5]
[364752146,1749229839319,-480.0,0.00027397,5]
[364752147,1749229839328,-286.55140987,0.00027397,5]
[364752148,1749229839337,-480.0,0.00027397,5]
[364752149,1749229839347,-480.0,0.00027397,5]
[364752150,1749229839358,-480.0,0.00027397,5]
[364752151,1749229839368,-480.0,0.00027397,5]
[364752152,1749229839379,-480.0,0.00027397,5]
[364752153,1749229839388,-500.0,0.00027397,5]
[364752154,1749229839398,-480.0,0.00027397,5]
[364752155,1749229839407,-480.0,0.00027397,5]
[364752156,1749229839416,-480.0,0.00027397,5]
[364752157,1749229839426,-497.18335319,0.00027397,5]
[364752158,1749229839435,-480.0,0.00027397,5]
[364752159,1749229839444,-480.0,0.00027397,5]
[364752160,1749229839453,-480.0,0.00027397,5]
[364752161,1749229839463,-480.0,0.00027397,5]
[364752162,1749229839472,-480.0,0.00027397,5]
[364752163,1749229839481,-1011.49,0.00027397,5]
[364752164,1749229839490,-480.0,0.00027397,5]
[364752165,1749229839500,-480.0,0.00027397,5]
[364752166,1749229839509,-480.0,0.00027397,5]
[364752167,1749229839518,-558.43,0.00027397,5]
[364752168,1749229839528,-480.0,0.00027397,5]
[364752169,1749229839537,-480.0,0.00027397,5]
[364752170,1749229839547,-610.13,0.00027397,5]
[364752171,1749229839556,-302.41998031,0.00027397,5]
[364752172,1749229839565,-480.0,0.00027397,5]
[364752173,1749229839574,-480.0,0.00027397,5]
[364752174,1749229839584,-376.88713618,0.00027397,5]
[364752175,1749229839594,-480.0,0.00027397,5]
[364752176,1749229839608,-480.0,0.00027397,5]
[364752177,1749229839617,-480.0,0.00027397,5]
[364752178,1749229839627,-480.0,0.00027397,5]
[364752179,1749229839638,-1715.86,0.00027397,5]
[364752180,1749229839647,-370.2295444,0.00027397,5]
[364752181,1749229839656,-491.4751328,0.00027397,5]
[364752182,1749229839665,-807.41,0.00027397,5]
[364752183,1749229839675,-489.81319888,0.00027397,5]
[364752184,1749229839684,-480.0,0.00027397,5]
[364752185,1749229839694,-480.0,0.00027397,5]
[364752186,1749229839703,-480.0,0.00027397,5]
[364752187,1749229839712,-480.0,0.00027397,5]
[364752188,1749229839721,-602.58,0.00027397,5]
[364752189,1749229839731,-480.0,0.00027397,5]
[364752190,1749229839741,-480.0,0.00027397,5]
[364752191,1749229839750,-480.0,0.00027397,5]
[364752192,1749229839759,-480.0,0.00027397,5]
[364752193,1749229839768,-480.0,0.00027397,5]
[364752194,1749229839778,-480.0,0.00027397,5]
[364752195,1749229839787,-480.0,0.00027397,5]
[364752196,1749229839796,-480.0,0.00027397,5]
[364752197,1749229839806,-480.0,0.00027397,5]
[364752198,1749229839815,-480.0,0.00027397,5]
[364752199,1749229839824,-489.53454566,0.00027397,5]
[364752200,1749229839833,-339.78847472,0.00027397,5]
[364752201,1749229839843,-480.0,0.00027397,5]
[364752202,1749229839852,-545.7404718,0.00027397,5]
[364752203,1749229839861,-480.0,0.00027397,5]
[364752204,1749229839870,-480.0,0.00027397,5]
[364752205,1749229839880,-550.31,0.00027397,5]
[364752206,1749229839890,-480.0,0.00027397,5]
[364752207,1749229839899,-480.0,0.00027397,5]
[364752208,1749229839908,-622.13,0.00027397,5]
[364752209,1749229839917,-480.0,0.00027397,5]
[364752210,1749229839926,-599.55,0.00027397,5]
[364752211,1749229839934,-480.0,0.00027397,5]
[364752212,1749229839943,-480.0,0.00027397,5]
[364752213,1749229839953,-490.58235706,0.00027397,5]
[364752214,1749229839962,-480.0,0.00027397,5]
[364752215,1749229839971,-480.0,0.00027397,5]
[364752216,1749229839980,-480.0,0.00027397,5]
[364752217,1749229839989,-480.0,0.00027397,5]
[364752218,1749229839998,-480.0,0.00027397,5]
[364752219,1749229840008,-349.1518131,0.00027397,5]
[364752220,1749229840017,-254.66158197,0.00027397,5]
[364752221,1749229840025,-480.0,0.00027397,5]
[364752222,1749229840034,-490.64,0.00027397,5]
[364752223,1749229840044,-480.0,0.00027397,5]
[364752225,1749229840053,-480.0,0.00027397,5]
[364752226,1749229840062,-480.0,0.00027397,5]
[364752227,1749229840071,-480.0,0.00027397,5]
[364752228,1749229840080,-480.0,0.00027397,5]
[364752229,1749229840089,-480.0,0.00027397,5]
[364752230,1749229840098,-480.0,0.00027397,5]
[364752231,1749229840108,-480.0,0.00027397,5]
[364752232,1749229840118,-2384.26,0.00027397,5]
[364752233,1749229840127,-470.0,0.00027397,5]
[364752234,1749229840138,-480.0,0.00027397,5]
[364752235,1749229840148,-480.0,0.00027397,5]
[364752236,1749229840157,-653.07,0.00027397,5]
[364752237,1749229840166,-480.0,0.00027397,5]
[364752238,1749229840175,-480.0,0.00027397,5]
[364752239,1749229840187,-480.0,0.00027397,5]
[364752240,1749229840195,-448.12748227,0.00027397,5]
[364752241,1749229840204,-151.44515001,0.00027397,5]
[364752242,1749229840213,-757.83,0.00027397,5]
[364752243,1749229840223,-480.0,0.00027397,5]
[364752244,1749229840232,-480.0,0.00027397,5]
[364752245,1749229840241,-1601.61,0.00027397,5]
[364752246,1749229840250,-589.54,0.00027397,5]
[364752247,1749229840259,-480.0,0.00027397,5]
[364752248,1749229840269,-338.69359784,0.00027397,5]
[364752249,1749229840279,-480.0,0.00027397,5]
[364752250,1749229840288,-480.0,0.00027397,5]
[364752251,1749229840297,-480.0,0.00027397,5]
[364752252,1749229840307,-480.0,0.00027397,5]
[364752253,1749229840316,-480.0,0.00027397,5]
[364752254,1749229840325,-223.92372439,0.00027397,5]
[364752255,1749229840335,-714.86,0.00027397,5]
[364752256,1749229840345,-777.0,0.00027397,5]
[364752257,1749229840354,-480.0,0.00027397,5]
[364752258,1749229840363,-480.0,0.00027397,5]
[364752259,1749229840584,-480.0,0.00027397,5]
[364752260,1749229840596,-429.56889342,0.00027397,5]
[364752261,1749229840609,-480.0,0.00027397,5]
[364752262,1749229840619,-594.61488097,0.00027397,5]
[364752263,1749229840628,-485.88938331,0.00027397,5]
[364752264,1749229840642,-480.0,0.00027397,5]
[364752265,1749229840653,-1293.92,0.00027397,5]
[364752266,1749229840662,-480.0,0.00027397,5]
[364752267,1749229840671,-480.0,0.00027397,5]
[364752268,1749229840682,-480.0,0.00027397,5]
[364752269,1749229840691,-480.0,0.00027397,5]
[364752270,1749229840700,-245.10404391,0.00027397,5]
[364752271,1749229840709,-480.0,0.00027397,5]
[364752272,1749229840718,-952.4,0.00027397,5]
[364752273,1749229840727,-692.87,0.00027397,5]
[364752274,1749229840738,-1552.44,0.00027397,5]
[364752275,1749229840747,-824.69,0.00027397,5]
[364752276,1749229840756,-878.5,0.00027397,5]
[364752277,1749229840766,-480.0,0.00027397,5]
[364752278,1749229840775,-480.0,0.00027397,5]
[364752279,1749229840784,-1820.97,0.00027397,5]
[364752281,1749229840794,-480.0,0.00027397,5]
[364752282,1749229840803,-1445.92,0.00027397,5]
[364752283,1749229840812,-480.0,0.00027397,5]
[364752284,1749229840822,-424.18732299,0.00027397,5]
[364752285,1749229840832,-480.0,0.00027397,5]
[364752286,1749229840841,-686.33,0.00027397,5]
[364752287,1749229840850,-1256.45,0.00027397,5]
[364752288,1749229840859,-480.0,0.00027397,5]
[364752289,1749229840868,-480.0,0.00027397,5]
[364752290,1749229840877,-480.0,0.00027397,5]
[364752291,1749229840889,-388.32677842,0.00027397,5]
[364752292,1749229840899,-480.0,0.00027397,5]
[364752293,1749229840908,-1113.88,0.00027397,5]
[364752294,1749229840917,-480.0,0.00027397,5]
[364752295,1749229840927,-480.0,0.00027397,5]
[364752296,1749229840936,-876.31,0.00027397,5]
[364752297,1749229840945,-872.88,0.00027397,5]
[364752298,1749229840954,-565.93,0.00027397,5]
[364752299,1749229840964,-480.0,0.00027397,5]
[364752301,1749229840973,-427.64118937,0.00027397,5]
[364752302,1749229840982,-757.79,0.00027397,5]
[364752303,1749229840992,-480.0,0.00027397,5]
[364752304,1749229841001,-767.93,0.00027397,5]
[364752305,1749229841010,-480.0,0.00027397,5]
[364752306,1749229841019,-480.0,0.00027397,5]
[364752307,1749229841028,-480.0,0.00027397,5]
[364752308,1749229841036,-480.0,0.00027397,5]
[364752309,1749229841045,-1120.8,0.00027397,5]
[364752310,1749229841054,-480.0,0.00027397,5]
[364752311,1749229841063,-480.0,0.00027397,5]
[364752312,1749229841072,-480.0,0.00027397,5]
[364752313,1749229841081,-480.0,0.00027397,5]
[364752314,1749229841090,-500.0,0.00027397,2]
[364752315,1749229841099,-695.31,0.00027397,5]
[364752316,1749229841107,-480.0,0.00027397,5]
[364752317,1749229841117,-480.0,0.00027397,5]
[364752318,1749229841126,-673.95,0.00027397,5]
[364752319,1749229841137,-491.53831758,0.00027397,5]
[364752320,1749229841146,-480.0,0.00027397,5]
[364752321,1749229841156,-480.0,0.00027397,5]
[364752322,1749229841165,-931.01,0.00027397,5]
[364752323,1749229841174,-480.0,0.00027397,5]
[364752324,1749229841183,-480.0,0.00027397,5]
[364752325,1749229841194,-480.0,0.00027397,5]
[364752326,1749229841204,-426.86006684,0.00027397,5]
[364752327,1749229841213,-480.0,0.00027397,5]
[364752328,1749229841225,-480.0,0.00027397,5]
[364752329,1749229841235,-480.0,0.00027397,5]
[364752330,1749229841245,-480.0,0.00027397,5]
[364752331,1749229841255,-609.77,0.00027397,5]
[364752332,1749229841264,-480.0,0.00027397,5]
[364752333,1749229841273,-480.0,0.00027397,5]
[364752334,1749229841282,-480.0,0.00027397,5]
[364752335,1749229841292,-490.70700859,0.00027397,5]
[364752336,1749229841302,-1281.91,0.00027397,5]
[364752337,1749229841311,-480.0,0.00027397,5]
[364752338,1749229841320,-480.0,0.00027397,5]
[364752339,1749229841330,-816.61,0.00027397,5]
[364752340,1749229841340,-764.02,0.00027397,5]
[364752341,1749229841349,-1371.81,0.00027397,5]
[364752342,1749229841359,-1580.65,0.00027397,5]
[364752343,1749229841368,-480.0,0.00027397,5]
[364752344,1749229841377,-480.0,0.00027397,5]
[364752345,1749229841389,-583.36,0.00027397,5]
[364752346,1749229841398,-533.29,0.00027397,5]
[364752347,1749229841408,-480.0,0.00027397,5]
[364752348,1749229841419,-979.62,0.00027397,5]
[364752349,1749229841428,-480.0,0.00027397,5]
[364752350,1749229841437,-480.0,0.00027397,5]
[364752351,1749229841447,-480.0,0.00027397,5]
[364752352,1749229841456,-680.63,0.00027397,5]
[364752353,1749229841466,-610.2,0.00027397,5]
[364752354,1749229841475,-480.0,0.00027397,5]
[364752355,1749229841485,-767.55,0.00027397,5]
[364752356,1749229841496,-480.0,0.00027397,5]
[364752357,1749229841506,-480.0,0.00027397,5]
[364752358,1749229841515,-480.0,0.00027397,5]
[364752359,1749229841525,-1108.13,0.00027397,5]
[364752360,1749229841534,-480.0,0.00027397,5]
[364752361,1749229841543,-1055.72,0.00027397,5]
[364752362,1749229841553,-480.0,0.00027397,5]
[364752363,1749229841562,-1139.21,0.00027397,5]
[364752364,1749229841571,-480.0,0.00027397,5]
[364752365,1749229841580,-211.66968226,0.00027397,5]
[364752366,1749229841589,-1478.89,0.00027397,5]
[364752367,1749229841600,-732.79,0.00027397,5]
[364752368,1749229841612,-480.0,0.00027397,5]
[364752369,1749229841621,-480.0,0.00027397,5]
[364752370,1749229841632,-731.83,0.00027397,5]
[364752371,1749229841642,-480.0,0.00027397,5]
[364752372,1749229841651,-639.73,0.00027397,5]
[364752373,1749229841660,-480.0,0.00027397,5]
[364752374,1749229841669,-599.16652941,0.00027397,5]
[364752375,1749229841680,-956.02,0.00027397,5]
[364752376,1749229841689,-1036.79,0.00027397,5]
[364752377,1749229841698,-1739.7,0.00027397,5]
[364752378,1749229841707,-2235.27,0.00027397,5]
[364752379,1749229841716,-480.0,0.00027397,5]
[364752380,1749229841726,-480.0,0.00027397,5]
[364752381,1749229841737,-480.0,0.00027397,5]
[364752382,1749229841749,-504.96,0.00027397,5]
[364752383,1749229841759,-480.0,0.00027397,5]
[364752384,1749229841768,-539.64,0.00027397,5]
[364752385,1749229841777,-480.0,0.00027397,5]
[364752386,1749229841787,-1178.04,0.00027397,5]
[364752387,1749229841797,-480.0,0.00027397,5]
[364752388,1749229841806,-480.0,0.00027397,5]
[364752389,1749229841815,-1000.0,0.00027397,5]
[364752390,1749229841826,-480.0,0.00027397,5]
[364752391,1749229841835,-480.0,0.00027397,5]
[364752392,1749229841844,-480.0,0.00027397,5]
[364752393,1749229841854,-995.2,0.00027397,5]
[364752394,1749229841864,-352.2929355,0.00027397,5]
[364752395,1749229841873,-480.0,0.00027397,5]
[364752396,1749229841882,-480.0,0.00027397,5]
[364752397,1749229841892,-1178.83,0.00027397,5]
[364752398,1749229841902,-1100.7,0.00027397,5]
[364752399,1749229841911,-480.0,0.00027397,5]
[364752400,1749229841921,-1284.64,0.00027397,5]
[364752401,1749229841930,-751.51,0.00027397,5]
[364752402,1749229841939,-835.65,0.00027397,5]
[364752403,1749229841949,-189.18816879,0.00027397,5]
[364752404,1749229841958,-3636.22,0.00027397,5]
[364752405,1749229841967,-480.0,0.00027397,5]
[364752406,1749229841977,-600.0,0.00027397,30]
[364752407,1749229841988,-1074.16,0.00027397,5]
[364752408,1749229841997,-480.0,0.00027397,5]
[364752409,1749229842007,-5321.9,0.00027397,5]
[364752410,1749229842016,-480.0,0.00027397,5]
[364752411,1749229842026,-495.27808491,0.00027397,5]
[364752412,1749229842035,-480.0,0.00027397,5]
[364752413,1749229842045,-480.0,0.00027397,5]
[364752414,1749229842054,-987.67,0.00027397,5]
[364752415,1749229842064,-480.0,0.00027397,5]
[364752416,1749229842073,-2080.45,0.00027397,5]
[364752417,1749229842082,-700.11,0.00027397,5]
[364752418,1749229842092,-480.0,0.00027397,5]
[364752419,1749229842101,-734.66,0.00027397,5]
[364752420,1749229842111,-6395.04,0.00027397,5]
[364752421,1749229842120,-480.0,0.00027397,5]
[364752422,1749229842130,-480.0,0.00027397,5]
[364752423,1749229842149,-835.42,0.00027397,5]
[364752424,1749229842158,-480.0,0.00027397,5]
[364752425,1749229842167,-713.79,0.00027397,5]
[364752426,1749229842177,-2288.96,0.00027397,5]
[364752427,1749229842187,-480.0,0.00027397,5]
[364752428,1749229842196,-1697.69,0.00027397,5]
[364752429,1749229842205,-727.92,0.00027397,5]
[364752430,1749229842215,-12208.62,0.00027397,5]
[364752431,1749229842224,-3886.76,0.00027397,5]
[364752432,1749229842234,-480.0,0.00027397,5]
[364752433,1749229842243,-6723.06,0.00027397,5]
[364752434,1749229842253,-2328.748482,0.00027397,5]
[364752435,1749229842263,-473.1908608,0.00027397,5]
[364752436,1749229842272,-3392.86,0.00027397,5]
[364752437,1749229842282,-480.0,0.00027397,5]
[364752438,1749229842291,-480.0,0.00027397,5]
[364752439,1749229842301,-480.0,0.00027397,5]
[364752440,1749229842310,-540.76,0.00027397,5]
[364752441,1749229842319,-527.54,0.00027397,5]
[364752442,1749229842329,-1317.74,0.00027397,5]
[364752443,1749229842338,-480.0,0.00027397,5]
[364752444,1749229842347,-480.0,0.00027397,5]
[364752445,1749229842357,-2152.11,0.00027397,5]
[364752446,1749229842366,-9718.94,0.00027397,5]
[364752447,1749229842376,-480.0,0.00027397,5]
[364752448,1749229842386,-76268.38,0.00027397,5]
[364752449,1749229842397,-978.82,0.00027397,5]
[364752450,1749229842407,-480.0,0.00027397,5]
[364752451,1749229842416,-480.0,0.00027397,5]
[364752452,1749229842426,-623.4917629,0.00027397,5]
[364752453,1749229842436,-587.06,0.00027397,5]
[364752454,1749229842445,-2136.804126,0.00027397,5]
[364752455,1749229842455,-499.91,0.00027397,5]
[364752456,1749229842465,-725.67,0.00027397,5]
[364752457,1749229842474,-480.0,0.00027397,5]
[364752458,1749229842484,-480.0,0.00027397,5]
[364752459,1749229842493,-3764.36,0.00027397,5]
[364752460,1749229842503,-9211.11,0.00027397,5]
[364752461,1749229842512,-480.0,0.00027397,5]
[364752462,1749229842522,-1051.06,0.00027397,5]
[364752463,1749229842531,-1366.23,0.00027397,5]
[364752464,1749229842541,-480.0,0.00027397,5]
[364752465,1749229842550,-983.23,0.00027397,5]
[364752466,1749229842560,-1624.53,0.00027397,5]
[364752467,1749229842569,-2500.86,0.00027397,5]
[364752468,1749229842578,-508.09,0.00027397,5]
[364752469,1749229842588,-2408.48,0.00027397,5]
[364752470,1749229842597,-499.27085598,0.00027397,5]
[364752471,1749229842611,-480.0,0.00027397,5]
[364752472,1749229842620,-1199.82,0.00027397,5]
[364752473,1749229842629,-480.0,0.00027397,5]
[364752474,1749229842639,-1867.89,0.00027397,5]
[364752475,1749229842650,-1202.07,0.00027397,5]
[364752476,1749229842660,-392.12,0.00027397,2]
[364752477,1749229842669,-1234.98,0.00027397,5]
[364752478,1749229842679,-745.42,0.00027397,5]
[364752479,1749229842690,-464.67828378,0.00027397,5]